bitfinex/quotes_SOLUSD_20250101
["timestamp","ask_amount","ask_price","bid_price","bid_amount"]
[1735737015606,26.38938244,190.64,190.51,16.57655235]
[1735737015809,20.0,190.63,190.53,16.57655235]
[1735737016410,136.3,190.67,190.56,16.57655235]
[1735737016625,136.3,190.66,190.57,16.57655235]
[1735737016821,136.3,190.65,190.58,16.57655235]
[1735737017033,136.3,190.65,190.57,16.57655235]
[1735737017338,136.3,190.67,190.57,16.57655235]
[1735737017758,136.3,190.66,190.57,16.57655235]
[1735737018036,136.3,190.65,190.57,16.57655235]
[1735737019037,136.3,190.65,190.56,36.57655235]
[1735737019236,136.3,190.65,190.55,16.57655235]
[1735737021053,136.3,190.64,190.54,36.57655235]
[1735737021543,136.3,190.64,190.54,20.0]
[1735737022069,20.0,190.61,190.51,16.57655235]
[1735737022418,20.0,190.61,190.5,1.5486]
[1735737022935,20.0,190.6,190.5,1.5486]
[1735737023238,8.2876,190.59,190.46,36.57655235]
[1735737023942,8.2876,190.59,190.48,16.57655235]
[1735737024138,8.2876,190.59,190.48,20.0]
[1735737024344,8.2876,190.59,190.47,16.57655235]
[1735737025939,23.776884,190.58,190.45,16.57655235]
[1735737026938,20.0,190.56,190.45,16.57655235]
[1735737027120,8.2876,190.59,190.47,16.57655235]
[1735737027541,8.2876,190.59,190.48,16.57655235]
[1735737027747,8.2876,190.59,190.5,16.57655235]
[1735737028041,8.2876,190.59,190.52,16.57655235]
[1735737028230,136.3,190.62,190.55,16.57655235]
[1735737028426,136.3,190.63,190.55,16.57655235]
[1735737030664,136.3,190.62,190.53,16.57655235]
[1735737031067,136.3,190.61,190.51,16.57655235]
[1735737031745,136.3,190.61,190.52,16.57655235]
[1735737032239,136.3,190.6,190.52,16.57655235]
[1735737032441,136.3,190.59,190.5,16.57655235]
[1735737033340,136.3,190.57,190.46,23.776884]
[1735737033566,136.3,190.57,190.48,16.57655235]
[1735737034873,136.3,190.57,190.47,16.57655235]
[1735737036572,136.3,190.57,190.48,16.57655235]
[1735737037081,136.3,190.56,190.45,16.57655235]
[1735737037248,7.9722,190.55,190.45,16.57655235]
[1735737039785,144.2722,190.55,190.43,16.57655235]
[1735737040157,7.9722,190.55,190.43,16.57655235]
[1735737040458,7.9722,190.55,190.45,16.57655235]
[1735737040867,136.3,190.54,190.46,16.57655235]
[1735737041078,136.3,190.54,190.47,16.57655235]
[1735737041385,7.9722,190.55,190.47,16.57655235]
[1735737043484,136.3,190.59,190.49,16.57655235]
[1735737043662,136.3,190.58,190.49,16.57655235]
[1735737044603,136.3,190.59,190.5,16.57655235]
[1735737045276,136.3,190.59,190.49,16.57655235]
[1735737045481,136.3,190.59,190.5,16.57655235]
[1735737045874,136.3,190.59,190.49,16.57655235]
[1735737046073,136.3,190.59,190.48,16.57655235]
[1735737046271,136.3,190.59,190.47,16.57655235]
[1735737047187,136.3,190.59,190.46,13.1254]
[1735737047388,136.3,190.58,190.46,13.1254]
[1735737048077,136.3,190.58,190.46,16.57655235]
[1735737048472,136.3,190.57,190.47,16.57655235]
[1735737049711,136.3,190.56,190.46,16.57655235]
[1735737050002,136.3,190.56,190.47,16.57655235]
[1735737050903,136.3,190.58,190.49,16.57655235]
[1735737051072,136.3,190.57,190.49,16.57655235]
[1735737051787,136.3,190.58,190.5,16.57655235]
[1735737052491,136.3,190.59,190.5,16.57655235]
[1735737052674,136.3,190.57,190.48,16.57655235]
[1735737056610,136.3,190.57,190.49,16.57655235]
[1735737057096,136.3,190.56,190.49,16.57655235]
[1735737060119,136.3,190.59,190.49,16.57655235]
[1735737060428,136.3,190.59,190.48,16.57655235]
[1735737062120,136.3,190.59,190.49,16.57655235]
[1735737062734,136.3,190.59,190.51,16.57655235]
[1735737063231,136.3,190.58,190.51,16.57655235]
[1735737065630,136.3,190.59,190.53,16.57655235]
[1735737065837,136.3,190.62,190.54,16.57655235]
[1735737066142,136.3,190.62,190.56,16.57655235]
[1735737066314,136.3,190.62,190.55,16.57655235]
[1735737066506,136.3,190.62,190.54,16.57655235]
[1735737068612,136.3,190.62,190.53,16.57655235]
[1735737069014,136.3,190.61,190.53,16.57655235]
[1735737070532,136.3,190.6,190.51,16.57655235]
[1735737070697,136.3,190.6,190.5,16.57655235]
[1735737072328,136.3,190.59,190.5,16.57655235]
[1735737072631,136.3,190.56,190.48,16.57655235]
[1735737072825,136.3,190.56,190.47,8.23526349]
[1735737073030,136.3,190.55,190.47,8.23526349]
[1735737073717,136.3,190.54,190.45,16.57655235]
[1735737074034,136.3,190.54,190.44,16.57655235]
[1735737074235,136.3,190.48,190.43,8.23526349]
[1735737074935,6.5113,190.49,190.43,8.23526349]
[1735737074936,136.3,190.46,190.43,8.23526349]
[1735737075437,136.3,190.48,190.41,16.57655235]
[1735737076033,6.5113,190.49,190.42,16.57655235]
[1735737076337,6.5113,190.49,190.4,16.57655235]
[1735737076634,1.5338,190.43,190.32,8.23526349]
[1735737076827,136.3,190.42,190.33,16.57655235]
[1735737077335,136.3,190.47,190.38,16.57655235]
[1735737077542,6.5113,190.49,190.42,16.57655235]
[1735737078038,6.5113,190.49,190.41,16.57655235]
[1735737078641,6.5113,190.49,190.4,16.57655235]
[1735737081115,6.5113,190.49,190.39,36.57655235]
[1735737082621,6.5113,190.49,190.39,20.0]
[1735737083117,6.5113,190.49,190.36,29.70895235]
[1735737083321,6.5113,190.49,190.36,13.1324]
[1735737083524,6.5113,190.49,190.36,29.70895235]
[1735737083821,6.5113,190.49,190.38,16.57655235]
[1735737085945,136.3,190.47,190.34,16.57655235]
[1735737087349,1.5686,190.46,190.33,23.776884]
[1735737087548,1.5686,190.46,190.33,40.35343635]
[1735737088144,1.5686,190.46,190.33,16.57655235]
[1735737088453,136.3,190.45,190.32,29.71185235]
[1735737089671,136.3,190.43,190.31,16.57655235]
[1735737090049,136.3,190.42,190.33,16.57655235]
[1735737090254,136.3,190.42,190.34,16.57655235]
[1735737092254,136.3,190.45,190.35,2.63146204]
[1735737092748,136.3,190.45,190.33,16.57655235]
[1735737094074,136.3,190.45,190.34,16.57655235]
[1735737094579,1.5686,190.46,190.31,36.913284]
[1735737094580,136.3,190.44,190.31,29.71295235]
[1735737094756,136.3,190.44,190.34,20.0]
[1735737095374,136.3,190.44,190.31,29.71295235]
[1735737095684,6.1196,190.43,190.31,29.71295235]
[1735737096174,136.3,190.41,190.3,16.57655235]
[1735737096383,136.3,190.37,190.29,16.57655235]
[1735737097258,19.2478,190.43,190.23,13.1413]
[1735737097259,136.3,190.34,190.23,13.1413]
[1735737097479,6.1196,190.35,190.27,16.57655235]
[1735737097674,6.1196,190.35,190.28,16.57655235]
[1735737098753,1.5031,190.36,190.28,16.57655235]
[1735737098955,1.5031,190.36,190.29,16.57655235]
[1735737104064,1.5031,190.36,190.28,16.57655235]
[1735737104267,1.5031,190.36,190.27,16.57655235]
[1735737107386,136.3,190.33,190.25,16.57655235]
[1735737107588,1.5031,190.36,190.28,16.57655235]
[1735737107973,1.5031,190.36,190.29,23.776884]
[1735737108198,6.1196,190.4,190.32,36.57655235]
[1735737109604,6.1196,190.4,190.32,20.0]
[1735737111202,142.4196,190.4,190.32,20.0]
[1735737112203,142.4196,190.4,190.29,36.57655235]
[1735737112505,142.4196,190.4,190.29,16.57655235]
[1735737114105,136.3,190.39,190.29,16.57655235]
[1735737114306,136.3,190.38,190.29,10.6391561]
[1735737119488,136.3,190.38,190.3,10.6391561]
[1735737119893,136.3,190.39,190.31,10.6391561]
[1735737120412,136.3,190.39,190.3,10.6391561]
[1735737120728,136.3,190.39,190.31,10.6391561]
[1735737120915,136.3,190.39,190.32,10.6391561]
[1735737121316,136.3,190.39,190.31,10.6391561]
[1735737122682,1.5031,190.42,190.35,30.6391561]
[1735737122882,1.5031,190.42,190.36,10.6391561]
[1735737123511,1.5031,190.42,190.35,30.6391561]
[1735737124882,1.5031,190.42,190.35,20.0]
[1735737125110,136.3,190.43,190.36,10.6391561]
[1735737125902,136.3,190.43,190.35,34.4160401]
[1735737126101,6.4595,190.45,190.35,34.4160401]
[1735737129015,6.4595,190.45,190.36,10.6391561]
[1735737129218,142.7595,190.45,190.36,10.6391561]
[1735737131000,142.7595,190.45,190.31,0.78783358]
[1735737131201,142.7595,190.45,190.3,23.7756561]
[1735737131699,142.7595,190.45,190.31,10.6391561]
[1735737132417,136.3,190.43,190.31,10.6391561]
[1735737132921,136.3,190.43,190.27,2.4312322]
[1735737132922,26.0182,190.32,190.24,8.23526349]
[1735737133094,20.0,190.28,190.24,8.23526349]
[1735737133293,136.3,190.27,190.24,8.23526349]
[1735737133497,6.0182,190.36,190.24,8.23526349]
[1735737133700,6.0182,190.36,190.28,10.6391561]
[1735737133899,6.0182,190.36,190.27,10.6391561]
[1735737134205,6.0182,190.36,190.26,10.6391561]
[1735737134610,6.0182,190.36,190.27,10.6391561]
[1735737136137,6.0182,190.36,190.25,13.1406]
[1735737136138,6.0182,190.36,190.28,10.6391561]
[1735737136322,6.0182,190.36,190.27,10.6391561]
[1735737137222,1.6179,190.38,190.3,23.776884]
[1735737137937,1.6179,190.38,190.29,23.776884]
[1735737138122,1.6179,190.38,190.29,34.4160401]
[1735737139527,1.6179,190.38,190.28,10.6391561]
[1735737139929,1.6179,190.38,190.28,34.4160401]
[1735737140328,1.6179,190.38,190.29,34.4160401]
[1735737141028,6.0182,190.41,190.34,10.6391561]
[1735737141215,1.5804,190.43,190.34,10.6391561]
[1735737141414,1.5804,190.43,190.35,10.6391561]
[1735737142222,1.5804,190.43,190.34,10.6391561]
[1735737144225,1.5804,190.43,190.33,30.6391561]
[1735737144436,1.5804,190.43,190.33,20.0]
[1735737144737,136.3,190.42,190.3,10.6391561]
[1735737144922,136.3,190.42,190.29,10.6391561]
[1735737145128,136.3,190.42,190.3,10.6391561]
[1735737147843,136.3,190.42,190.31,10.6391561]
[1735737149650,136.3,190.42,190.3,30.6391561]
[1735737149838,136.3,190.42,190.3,10.6391561]
[1735737150038,136.3,190.42,190.3,30.6391561]
[1735737150364,136.3,190.41,190.31,23.776884]
[1735737151151,136.3,190.41,190.31,34.4160401]
[1735737151458,136.3,190.41,190.31,23.776884]
[1735737152056,6.0909,190.4,190.31,23.776884]
[1735737153262,6.0909,190.4,190.24,8.23526349]
[1735737153263,137.8804,190.38,190.24,9.02329478]
[1735737153460,137.8804,190.38,190.24,8.23526349]
[1735737153633,137.8804,190.38,190.23,1.6567]
[1735737153634,136.3,190.37,190.26,10.6391561]
[1735737154149,136.3,190.37,190.25,20.0]
[1735737154456,136.3,190.37,190.26,10.6391561]
[1735737155360,136.3,190.35,190.22,10.6391561]
[1735737155855,1.5095,190.34,190.27,10.6391561]
[1735737156032,1.5095,190.34,190.28,10.6391561]
[1735737157366,1.5095,190.34,190.29,10.6391561]
[1735737158670,1.5095,190.34,190.3,10.6391561]
[1735737159658,1.5095,190.34,190.29,30.6391561]
[1735737159845,1.5095,190.34,190.29,23.776884]
[1735737160478,1.5095,190.34,190.28,10.6391561]
[1735737162263,1.5095,190.34,190.27,10.6391561]
[1735737162470,1.5095,190.34,190.26,10.6391561]
[1735737163339,1.5095,190.34,190.25,30.6391561]
[1735737163759,1.5095,190.34,190.25,10.6391561]
[1735737163965,137.8095,190.34,190.24,10.6391561]
[1735737164342,137.8095,190.34,190.21,0.78823214]
[1735737164343,137.8095,190.34,190.23,10.6391561]
[1735737164664,136.3,190.33,190.23,10.6391561]
[1735737164855,136.3,190.33,190.22,10.6391561]
[1735737165363,136.3,190.33,190.21,10.6391561]
[1735737165966,6.0344,190.32,190.21,10.6391561]
[1735737166263,6.0344,190.32,190.2,23.776884]
[1735737166264,136.3,190.3,190.2,10.6391561]
[1735737167546,136.3,190.3,190.19,10.6391561]
[1735737168659,1.5504,190.29,190.19,10.6391561]
[1735737169059,1.5504,190.29,190.19,23.776884]
[1735737169373,1.5504,190.29,190.16,13.1467]
[1735737169580,1.5504,190.29,190.17,10.6391561]
[1735737169748,6.0344,190.28,190.16,10.6391561]
[1735737169947,6.0344,190.28,190.17,23.776884]
[1735737170171,6.0344,190.28,190.15,10.6391561]
[1735737170975,6.0344,190.28,190.17,23.776884]
[1735737171875,6.0344,190.28,190.17,10.6391561]
[1735737174585,136.3,190.27,190.17,10.6391561]
[1735737175365,136.3,190.27,190.15,23.776884]
[1735737175567,136.3,190.27,190.17,10.6391561]
[1735737176379,136.3,190.27,190.16,10.6391561]
[1735737177376,136.3,190.26,190.16,10.6391561]
[1735737177753,136.3,190.26,190.17,10.6391561]
[1735737178583,136.3,190.26,190.18,10.6391561]
[1735737180471,6.0344,190.28,190.21,10.6391561]
[1735737180673,6.0344,190.28,190.2,10.6391561]
[1735737182165,6.0344,190.28,190.21,10.6391561]
[1735737183577,6.0344,190.28,190.2,10.6391561]
[1735737184258,6.0344,190.28,190.19,10.6391561]
[1735737185283,1.5504,190.29,190.24,10.6391561]
[1735737185584,1.5504,190.29,190.25,10.6391561]
[1735737186800,6.132,190.32,190.26,10.6391561]
[1735737187706,6.132,190.32,190.27,10.6391561]
[1735737188514,1.5186,190.33,190.28,10.6391561]
[1735737188682,1.5186,190.33,190.29,10.6391561]
[1735737188883,7.6506,190.37,190.29,10.6391561]
[1735737190188,136.3,190.46,190.36,34.4160401]
[1735737190397,136.3,190.47,190.38,10.6391561]
[1735737191112,136.3,190.47,190.37,10.6391561]
[1735737193405,136.3,190.46,190.37,10.6391561]
[1735737194190,136.3,190.46,190.36,10.6391561]
[1735737195415,136.3,190.46,190.37,10.6391561]
[1735737197217,136.3,190.46,190.38,34.4160401]
[1735737197398,7.6506,190.48,190.38,10.6391561]
[1735737197713,136.3,190.47,190.37,10.6391561]
[1735737199710,136.3,190.47,190.38,10.6391561]
[1735737200614,136.3,190.47,190.36,23.776884]
[1735737200615,136.3,190.47,190.37,10.6391561]
[1735737202315,136.3,190.47,190.36,23.776884]
[1735737202493,136.3,190.47,190.38,10.6391561]
[1735737205220,136.3,190.46,190.32,0.78775759]
[1735737205434,136.3,190.46,190.31,13.1358]
[1735737205723,136.3,190.46,190.33,10.6391561]
[1735737205902,136.3,190.46,190.34,30.6391561]
[1735737206109,136.3,190.46,190.34,10.6391561]
[1735737208924,136.3,190.46,190.35,10.6391561]
[1735737209400,136.3,190.46,190.32,23.776884]
[1735737209401,136.3,190.47,190.38,10.6391561]
[1735737211122,136.3,190.46,190.37,10.6391561]
[1735737212598,136.3,190.46,190.38,10.6391561]
[1735737212832,136.3,190.46,190.39,10.6391561]
[1735737213012,7.6506,190.48,190.41,10.6391561]
[1735737213909,7.6506,190.48,190.42,10.6391561]
[1735737214222,1.5186,190.48,190.43,10.6391561]
[1735737214621,136.3,190.51,190.43,10.6391561]
[1735737215623,7.8031,190.52,190.43,10.6391561]
[1735737215836,7.8031,190.52,190.44,10.6391561]
[1735737216014,7.8031,190.52,190.45,10.6391561]
[1735737220918,7.8031,190.52,190.46,10.6391561]
[1735737221115,1.6031,190.52,190.46,10.6391561]
[1735737221315,137.9228,190.56,190.48,10.6391561]
[1735737221806,1.6228,190.56,190.47,10.6391561]
[1735737222005,1.6228,190.56,190.46,10.6391561]
[1735737222226,1.6228,190.56,190.45,10.6391561]
[1735737223626,1.6228,190.56,190.46,10.6391561]
[1735737223627,136.3,190.55,190.46,10.6391561]
[1735737225244,136.3,190.54,190.45,10.6391561]
[1735737228321,136.3,190.54,190.41,37.69376093]
[1735737228547,136.3,190.54,190.43,10.6391561]
[1735737231244,136.3,190.54,190.44,10.6391561]
[1735737231427,136.3,190.53,190.44,10.6391561]
[1735737232334,136.3,190.53,190.43,10.6391561]
[1735737232535,136.3,190.53,190.42,10.6391561]
[1735737233846,136.3,190.53,190.43,10.6391561]
[1735737234448,136.3,190.52,190.43,10.6391561]
[1735737237550,136.3,190.55,190.43,10.6391561]
[1735737240538,136.3,190.54,190.43,10.6391561]
[1735737241559,136.3,190.54,190.44,10.6391561]
[1735737241761,136.3,190.54,190.44,30.6391561]
[1735737242139,136.3,190.54,190.44,20.0]
[1735737242963,136.3,190.51,190.38,1.5532]
[1735737243130,1.6228,190.56,190.37,10.6391561]
[1735737243131,136.3,190.46,190.37,10.6391561]
[1735737243337,136.3,190.46,190.36,17.0024561]
[1735737243550,136.3,190.46,190.4,20.0]
[1735737244273,136.3,190.46,190.38,10.6391561]
[1735737245766,136.3,190.46,190.4,10.6391561]
[1735737245977,136.3,190.46,190.4,20.0]
[1735737246478,136.3,190.47,190.4,20.0]
[1735737249460,136.3,190.46,190.38,10.6391561]
[1735737249656,136.3,190.46,190.38,34.4160401]
[1735737250464,136.3,190.46,190.39,23.776884]
[1735737250667,136.3,190.46,190.39,34.4160401]
[1735737252460,1.5751,190.48,190.39,34.4160401]
[1735737255854,1.5751,190.48,190.41,23.776884]
[1735737256251,1.5751,190.48,190.39,10.6391561]
[1735737256969,136.3,190.47,190.37,30.6391561]
[1735737257174,136.3,190.47,190.36,30.6391561]
[1735737258049,136.3,190.47,190.37,23.776884]
[1735737258789,136.3,190.45,190.33,1.5469]
[1735737259090,142.4799,190.43,190.31,10.6391561]
[1735737259447,142.4799,190.43,190.32,34.4160401]
[1735737261472,142.4799,190.43,190.32,10.6391561]
[1735737261654,142.4799,190.43,190.32,23.776884]
[1735737262251,1.5967,190.42,190.32,23.776884]
[1735737264476,136.3,190.41,190.32,23.776884]
[1735737265074,136.3,190.4,190.3,23.776884]
[1735737265277,136.3,190.41,190.31,10.6391561]
[1735737265479,136.3,190.41,190.32,23.776884]
[1735737265661,136.3,190.41,190.32,10.6391561]
[1735737266059,136.3,190.41,190.34,10.6391561]
[1735737266378,1.5967,190.42,190.34,10.6391561]
[1735737267154,1.5967,190.47,190.38,23.776884]
[1735737267658,136.3,190.46,190.38,10.6391561]
[1735737267865,137.8967,190.47,190.4,23.776884]
[1735737270976,137.8967,190.47,190.37,23.776884]
[1735737271187,137.8967,190.47,190.39,23.776884]
[1735737274199,137.8967,190.52,190.43,23.776884]
[1735737274369,136.3,190.52,190.45,34.4160401]
[1735737275385,136.3,190.52,190.47,23.776884]
[1735737279474,136.3,190.55,190.47,23.776884]
[1735737280089,136.3,190.56,190.47,23.776884]
[1735737280288,136.3,190.55,190.47,23.776884]
[1735737280478,137.8967,190.57,190.49,23.776884]
[1735737280879,6.5936,190.58,190.51,23.776884]
[1735737281072,136.3,190.6,190.47,0.78723779]
[1735737281273,136.3,190.61,190.51,10.6391561]
[1735737282083,136.3,190.61,190.53,23.776884]
[1735737289114,136.3,190.61,190.52,23.776884]
[1735737290999,136.3,190.61,190.53,10.6391561]
[1735737291378,149.4123,190.66,190.52,23.776884]
[1735737291698,136.3,190.62,190.52,23.776884]
[1735737292598,136.3,190.62,190.52,34.4160401]
[1735737294487,136.3,190.62,190.52,23.776884]
[1735737294802,136.3,190.62,190.52,34.4160401]
[1735737295815,136.3,190.62,190.52,23.776884]
[1735737296107,136.3,190.62,190.52,34.4160401]
[1735737297109,136.3,190.62,190.54,23.776884]
[1735737297678,136.3,190.65,190.51,2.34972335]
[1735737297884,136.3,190.65,190.53,20.0]
[1735737299020,13.1137,190.64,190.51,1.5627]
[1735737299309,20.0,190.61,190.51,1.5627]
[1735737299694,20.0,190.61,190.52,23.776884]
[1735737300196,19.5,190.61,190.52,23.776884]
[1735737300601,136.3,190.6,190.52,23.776884]
[1735737302113,136.3,190.6,190.51,1.5627]
[1735737303710,136.3,190.58,190.51,1.5627]
[1735737304016,136.3,190.58,190.52,23.776884]
[1735737306719,136.3,190.6,190.52,23.776884]
[1735737307814,136.3,190.59,190.52,23.776884]
[1735737308010,136.3,190.6,190.52,34.4160401]
[1735737308722,136.3,190.6,190.52,23.776884]
[1735737309226,136.3,190.6,190.51,12.2018561]
[1735737309227,136.3,190.6,190.51,1.5627]
[1735737311329,136.3,190.6,190.52,23.776884]
[1735737312522,136.3,190.6,190.51,1.5627]
[1735737312523,20.0,190.56,190.51,1.5627]
[1735737312692,135.8,190.55,190.46,8.1943]
[1735737313016,135.8,190.58,190.47,23.776884]
[1735737314907,135.8,190.53,190.47,23.776884]
[1735737315215,135.8,190.55,190.46,8.1943]
[1735737315419,135.8,190.55,190.46,1.6231]
[1735737317026,148.9205,190.55,190.42,7.6602]
[1735737317202,135.8,190.54,190.42,7.6602]
[1735737317707,135.8,190.54,190.43,23.776884]
[1735737320540,135.8,190.54,190.43,34.4160401]
[1735737320704,135.8,190.54,190.42,7.6602]
[1735737320705,135.8,190.54,190.45,23.776884]
[1735737321609,20.0,190.54,190.45,23.776884]
[1735737322808,20.0,190.54,190.45,10.6391561]
[1735737323010,135.8,190.56,190.45,10.6391561]
[1735737323326,135.8,190.58,190.49,23.776884]
[1735737323833,14.7433,190.61,190.49,29.930284]
[1735737324130,13.1159,190.61,190.49,29.930284]
[1735737324519,136.3,190.6,190.49,29.930284]
[1735737324742,136.3,190.6,190.49,40.5694401]
[1735737324934,136.3,190.6,190.51,23.776884]
[1735737325408,136.3,190.63,190.51,10.6391561]
[1735737325816,13.1137,190.64,190.49,6.1534]
[1735737325817,136.3,190.62,190.53,23.776884]
[1735737326828,136.3,190.62,190.51,10.6391561]
[1735737327635,136.3,190.62,190.53,23.776884]
[1735737328244,13.1137,190.64,190.53,23.776884]
[1735737328747,156.3,190.64,190.55,23.776884]
[1735737328945,136.3,190.67,190.57,23.776884]
[1735737329309,136.3,190.66,190.57,23.776884]
[1735737330916,136.3,190.67,190.57,23.776884]
[1735737331150,136.3,190.67,190.57,34.4160401]
[1735737331621,136.3,190.67,190.57,23.776884]
[1735737332927,136.3,190.67,190.57,34.4160401]
[1735737333618,136.3,190.69,190.57,34.4160401]
[1735737335339,136.3,190.69,190.59,23.776884]
[1735737336728,136.3,190.7,190.59,34.4160401]
[1735737336937,136.3,190.7,190.59,23.776884]
[1735737338141,136.3,190.7,190.59,34.4160401]
[1735737338318,13.1068,190.74,190.61,23.776884]
[1735737338319,136.3,190.72,190.61,23.776884]
[1735737338739,20.0,190.7,190.61,23.776884]
[1735737339540,20.0,190.7,190.59,10.6391561]
[1735737339741,20.0,190.7,190.61,23.776884]
[1735737339919,20.0,190.7,190.59,23.776884]
[1735737341544,20.0,190.7,190.59,34.4160401]
[1735737342835,20.0,190.7,190.6,10.6391561]
[1735737343024,20.0,190.7,190.61,23.776884]
[1735737343629,20.0,190.7,190.58,12.2940561]
[1735737344645,20.0,190.7,190.59,23.776884]
[1735737345148,20.0,190.7,190.59,34.4160401]
[1735737346233,20.0,190.7,190.65,23.776884]
[1735737346438,136.3,190.73,190.65,23.776884]
[1735737346751,136.3,190.73,190.65,34.4160401]
[1735737346940,136.3,190.75,190.65,34.4160401]
[1735737347125,136.3,190.76,190.67,23.776884]
[1735737347949,20.0,190.77,190.67,23.776884]
[1735737348630,20.0,190.77,190.65,10.6391561]
[1735737348830,136.3,190.76,190.64,1.6538]
[1735737349031,20.0,190.73,190.64,1.6538]
[1735737349236,20.0,190.73,190.65,23.776884]
[1735737350050,136.3,190.76,190.67,23.776884]
[1735737350352,136.3,190.76,190.64,12.2929561]
[1735737350529,136.3,190.76,190.64,1.6538]
[1735737350729,20.0,190.73,190.64,1.6538]
[1735737350936,20.0,190.73,190.65,23.776884]
[1735737352556,136.3,190.76,190.65,23.776884]
[1735737354631,136.3,190.75,190.65,23.776884]
[1735737356127,136.3,190.75,190.65,34.4160401]
[1735737356332,136.3,190.75,190.67,23.776884]
[1735737357148,136.3,190.75,190.67,10.6391561]
[1735737357547,136.3,190.79,190.69,23.776884]
[1735737360657,136.3,190.78,190.69,23.776884]
[1735737361577,20.0,190.74,190.69,23.776884]
[1735737363763,20.0,190.74,190.68,7.6269]
[1735737365148,136.3,190.77,190.68,7.6269]
[1735737366063,20.0,190.74,190.68,7.6269]
[1735737366361,136.3,190.77,190.69,23.776884]
[1735737366869,136.3,190.8,190.69,23.776884]
[1735737369548,20.0,190.79,190.69,23.776884]
[1735737370383,136.3,190.84,190.71,23.776884]
[1735737370547,20.0,190.81,190.73,23.776884]
[1735737373157,136.3,190.83,190.73,23.776884]
[1735737373158,20.0,190.8,190.73,23.776884]
[1735737375360,20.0,190.8,190.65,1.6628]
[1735737375361,20.0,190.79,190.65,1.6628]
[1735737375561,20.0,190.79,190.65,12.3019561]
[1735737376963,136.3,190.78,190.66,23.776884]
[1735737378255,136.3,190.77,190.66,23.776884]
[1735737380274,136.3,190.77,190.68,23.776884]
[1735737380482,136.3,190.8,190.7,23.776884]
[1735737380801,20.0,190.76,190.7,23.776884]
[1735737381354,136.3,190.79,190.7,23.776884]
[1735737381560,136.3,190.85,190.72,23.776884]
[1735737381855,20.0,190.81,190.74,23.776884]
[1735737383873,20.0,190.81,190.73,6.5606]
[1735737383874,20.0,190.8,190.73,6.5606]
[1735737384079,20.0,190.8,190.69,1.6573]
[1735737384080,136.3,190.78,190.69,1.6573]
[1735737384461,136.3,190.78,190.7,23.776884]
[1735737385293,136.3,190.78,190.69,1.6573]
[1735737385788,20.0,190.74,190.69,1.6573]
[1735737388393,136.3,190.77,190.7,23.776884]
[1735737388597,136.3,190.77,190.69,1.6573]
[1735737388767,20.0,190.74,190.69,1.6573]
[1735737389096,20.0,190.73,190.64,1.6573]
[1735737389385,20.0,190.73,190.65,23.776884]
[1735737390273,136.3,190.72,190.64,1.6573]
[1735737391490,136.3,190.72,190.65,23.776884]
[1735737396710,20.0,190.73,190.65,23.776884]
[1735737396899,20.0,190.72,190.65,23.776884]
[1735737399741,20.0,190.71,190.65,23.776884]
[1735737402845,20.0,190.72,190.65,23.776884]
[1735737404837,136.3,190.75,190.65,23.776884]
[1735737405751,136.3,190.74,190.65,23.776884]
[1735737407043,20.0,190.71,190.65,23.776884]
[1735737407341,20.0,190.71,190.64,1.6573]
[1735737408835,136.3,190.7,190.64,1.6573]
[1735737409344,136.3,190.69,190.64,1.6573]